[Event "Early-Titled-Tuesday-Blitz-March-12-2024"]
[Site "Chess.com"]
[Date "2024.03.12"]
[Round "2"]
[White "jk13"]
[Black "FormerProdigy"]
[Result "0-1"]
[WhiteElo "2660"]
[BlackElo "2977"]
[TimeControl "180+1"]
[EndTime "8:18:21 PDT"]
[Termination "FormerProdigy won by resignation"]

1. e4 {[%clk 0:03:00.9]} 1... c6 {[%clk 0:02:59.8]} 2. Nc3 {[%clk 0:02:59.8]}
2... d5 {[%clk 0:03:00.7]} 3. Nf3 {[%clk 0:02:59.9]} 3... Bg4 {[%clk 0:03:00.5]}
4. h3 {[%clk 0:03:00.1]} 4... Bh5 {[%clk 0:03:00.6]} 5. Be2 {[%clk 0:02:59.2]}
5... e6 {[%clk 0:02:52.9]} 6. Ne5 {[%clk 0:02:59]} 6... Bxe2 {[%clk 0:02:52.2]}
7. Qxe2 {[%clk 0:02:59.9]} 7... Nd7 {[%clk 0:02:51.2]} 8. Nxd7 {[%clk
0:02:57.6]} 8... Qxd7 {[%clk 0:02:52.1]} 9. O-O {[%clk 0:02:56.2]} 9... d4
{[%clk 0:02:40.3]} 10. Nb1 {[%clk 0:02:54.8]} 10... d3 {[%clk 0:02:40.8]} 11.
cxd3 {[%clk 0:02:51.6]} 11... Rd8 {[%clk 0:02:35.3]} 12. Nc3 {[%clk 0:02:36.6]}
12... Qxd3 {[%clk 0:02:35.3]} 13. Qxd3 {[%clk 0:02:23.9]} 13... Rxd3 {[%clk
0:02:36.2]} 14. Re1 {[%clk 0:02:22.4]} 14... Bc5 {[%clk 0:02:31.1]} 15. Kf1
{[%clk 0:02:22.7]} 15... Nf6 {[%clk 0:02:27.1]} 16. Ke2 {[%clk 0:02:23]} 16...
Rd7 {[%clk 0:02:27.1]} 17. d3 {[%clk 0:02:21.7]} 17... O-O {[%clk 0:02:21.2]}
18. Be3 {[%clk 0:02:22]} 18... Bd4 {[%clk 0:02:09.4]} 19. Rac1 {[%clk
0:02:13.9]} 19... Rfd8 {[%clk 0:02:08.9]} 20. Red1 {[%clk 0:02:14.6]} 20... e5
{[%clk 0:02:05]} 21. Na4 {[%clk 0:02:03.6]} 21... Re7 {[%clk 0:01:58]} 22. b4
{[%clk 0:01:49.5]} 22... h6 {[%clk 0:01:53.4]} 23. Nc5 {[%clk 0:01:44.6]} 23...
Kf8 {[%clk 0:01:24.4]} 24. Nb3 {[%clk 0:01:44]} 24... Bxe3 {[%clk 0:01:23.3]}
25. Kxe3 {[%clk 0:01:39]} 25... Rd6 {[%clk 0:01:21.7]} 26. f3 {[%clk 0:01:37.5]}
26... Nh5 {[%clk 0:01:19.8]} 27. Rd2 {[%clk 0:01:29.3]} 27... g5 {[%clk
0:01:09.7]} 28. d4 {[%clk 0:01:19.6]} 28... Nf4 {[%clk 0:01:08.8]} 29. g3 {[%clk
0:00:53.2]} 29... exd4+ {[%clk 0:01:07.7]} 30. Rxd4 {[%clk 0:00:46.6]} 30...
Rxd4 {[%clk 0:01:08]} 31. Nxd4 {[%clk 0:00:47]} 31... Nd5+ {[%clk 0:01:08.5]}
32. Kf2 {[%clk 0:00:43.3]} 32... Nxb4 {[%clk 0:01:09.4]} 33. Ke2 {[%clk
0:00:37.8]} 33... Rd7 {[%clk 0:01:02.3]} 34. Nf5 {[%clk 0:00:37.3]} 34... Nxa2
{[%clk 0:01:00.6]} 35. Rc4 {[%clk 0:00:26.6]} 35... a5 {[%clk 0:00:53.1]} 36.
Nxh6 {[%clk 0:00:24.9]} 36... f6 {[%clk 0:00:43.3]} 37. Nf5 {[%clk 0:00:23.6]}
37... Nb4 {[%clk 0:00:42.4]} 38. h4 {[%clk 0:00:21.5]} 38... gxh4 {[%clk
0:00:41.9]} 39. gxh4 {[%clk 0:00:22.2]} 39... b5 {[%clk 0:00:41.7]} 40. Rc1
{[%clk 0:00:21.2]} 40... a4 {[%clk 0:00:38.7]} 41. h5 {[%clk 0:00:21.8]} 41...
a3 {[%clk 0:00:37.3]} 42. h6 {[%clk 0:00:20.6]} 42... a2 {[%clk 0:00:36.7]} 43.
Ra1 {[%clk 0:00:21.2]} 43... Kg8 {[%clk 0:00:32.1]} 44. Rg1+ {[%clk 0:00:17.8]}
44... Kh7 {[%clk 0:00:32]} 45. Ra1 {[%clk 0:00:17.5]} 45... c5 {[%clk
0:00:21.6]} 46. f4 {[%clk 0:00:15.6]} 46... Ra7 {[%clk 0:00:20.3]} 47. Kd2
{[%clk 0:00:15]} 47... Ra3 {[%clk 0:00:18.1]} 48. e5 {[%clk 0:00:13.1]} 48...
fxe5 {[%clk 0:00:19]} 49. fxe5 {[%clk 0:00:13.6]} 49... Rd3+ {[%clk 0:00:16.5]}
50. Kc1 {[%clk 0:00:12.5]} 50... Rd5 {[%clk 0:00:16.2]} 51. Nd6 {[%clk
0:00:07.9]} 51... c4 {[%clk 0:00:14.4]} 52. Nf7 {[%clk 0:00:05.5]} 52... c3
{[%clk 0:00:13.8]} 53. e6 {[%clk 0:00:05]} 53... Rh5 {[%clk 0:00:11.9]} 54. Kd1
{[%clk 0:00:03]} 54... Rh1+ {[%clk 0:00:11.9]} 55. Ke2 {[%clk 0:00:03.5]} 55...
Rxa1 {[%clk 0:00:12.7]} 56. e7 {[%clk 0:00:04.2]} 56... Re1+ {[%clk 0:00:13]}
57. Kxe1 {[%clk 0:00:04.8]} 57... a1=Q+ {[%clk 0:00:13.5]} 58. Ke2 {[%clk
0:00:05.7]} 58... Qa2+ {[%clk 0:00:13.5]} 0-1

[Event "Early-Titled-Tuesday-Blitz-March-12-2024"]
[Site "Chess.com"]
[Date "2024.03.12"]
[Round "2"]
[White "snowlord"]
[Black "Let_it_be_1"]
[Result "1-0"]
[WhiteElo "2907"]
[BlackElo "2608"]
[TimeControl "180+1"]
[EndTime "8:18:26 PDT"]
[Termination "snowlord won by resignation"]

1. d4 {[%clk 0:03:00.9]} 1... d5 {[%clk 0:03:00.2]} 2. c4 {[%clk 0:02:59.9]}
2... e6 {[%clk 0:03:00.4]} 3. Nf3 {[%clk 0:02:59.6]} 3... Nf6 {[%clk 0:03:00.3]}
4. Nc3 {[%clk 0:02:59.3]} 4... Be7 {[%clk 0:03:00.5]} 5. Bf4 {[%clk 0:02:57.1]}
5... O-O {[%clk 0:03:00.2]} 6. e3 {[%clk 0:02:57.6]} 6... Nbd7 {[%clk
0:02:59.9]} 7. Be2 {[%clk 0:02:56.1]} 7... dxc4 {[%clk 0:02:59.8]} 8. a4 {[%clk
0:02:56]} 8... a6 {[%clk 0:02:55.5]} 9. Bxc4 {[%clk 0:02:55.1]} 9... c5 {[%clk
0:02:54.9]} 10. O-O {[%clk 0:02:31.2]} 10... cxd4 {[%clk 0:02:54.7]} 11. exd4
{[%clk 0:02:24.4]} 11... Nb6 {[%clk 0:02:54.2]} 12. Bd3 {[%clk 0:02:24.9]} 12...
Bd7 {[%clk 0:02:53.5]} 13. Ne5 {[%clk 0:02:22.5]} 13... Bc6 {[%clk 0:02:53.8]}
14. Bg5 {[%clk 0:02:05.8]} 14... Nbd5 {[%clk 0:02:37]} 15. Rc1 {[%clk
0:01:57.3]} 15... Qb6 {[%clk 0:02:18.2]} 16. Bb1 {[%clk 0:01:13.9]} 16... Qxb2
{[%clk 0:02:01.6]} 17. Qd3 {[%clk 0:01:03]} 17... g6 {[%clk 0:01:29.9]} 18. Nxd5
{[%clk 0:00:45.6]} 18... Nxd5 {[%clk 0:01:15.4]} 19. Bh6 {[%clk 0:00:37.4]}
19... Bxa4 {[%clk 0:00:57.8]} 20. Bxf8 {[%clk 0:00:24.1]} 20... Rxf8 {[%clk
0:00:56.5]} 21. Rfe1 {[%clk 0:00:14.9]} 21... Bg5 {[%clk 0:00:46.3]} 22. Rcd1
{[%clk 0:00:07.4]} 22... Bxd1 {[%clk 0:00:41.6]} 23. Rxd1 {[%clk 0:00:08.3]}
23... Nc3 {[%clk 0:00:38.8]} 24. Rf1 {[%clk 0:00:08.6]} 24... Ne2+ {[%clk
0:00:21]} 25. Kh1 {[%clk 0:00:08.6]} 25... Nxd4 {[%clk 0:00:21.3]} 26. Qg3
{[%clk 0:00:04.6]} 26... Bh6 {[%clk 0:00:17.1]} 27. Qh4 {[%clk 0:00:04.3]} 27...
Bg7 {[%clk 0:00:16.6]} 28. Nd3 {[%clk 0:00:03.1]} 28... Qd2 {[%clk 0:00:11]} 29.
Qe4 {[%clk 0:00:03.4]} 29... f5 {[%clk 0:00:10]} 30. Qxb7 {[%clk 0:00:02.8]}
30... Rd8 {[%clk 0:00:07.9]} 31. h4 {[%clk 0:00:02.8]} 31... Ne2 {[%clk
0:00:07.3]} 32. Qc6 {[%clk 0:00:02.4]} 32... Nd4 {[%clk 0:00:06.2]} 33. Qc7
{[%clk 0:00:02.4]} 33... Bf6 {[%clk 0:00:05.1]} 34. Re1 {[%clk 0:00:02.6]} 34...
Qh6 {[%clk 0:00:03.3]} 35. g3 {[%clk 0:00:02.6]} 35... g5 {[%clk 0:00:03.2]} 36.
Ba2 {[%clk 0:00:01.9]} 36... gxh4 {[%clk 0:00:02.7]} 37. Bxe6+ {[%clk
0:00:02.6]} 37... Nxe6 {[%clk 0:00:02.9]} 38. Rxe6 {[%clk 0:00:03.4]} 38...
hxg3+ {[%clk 0:00:03.4]} 39. Kg2 {[%clk 0:00:02.7]} 39... Qh2+ {[%clk
0:00:03.6]} 40. Kf3 {[%clk 0:00:03.6]} 40... Qh1+ {[%clk 0:00:04]} 41. Kxg3
{[%clk 0:00:03.7]} 41... Qh4+ {[%clk 0:00:04]} 42. Kg2 {[%clk 0:00:03.6]} 42...
Rxd3 {[%clk 0:00:02.8]} 43. Qc8+ {[%clk 0:00:01.9]} 43... Kg7 {[%clk 0:00:02.9]}
44. Qc7+ {[%clk 0:00:02.1]} 44... Kg6 {[%clk 0:00:03.4]} 45. Qc6 {[%clk
0:00:01.4]} 45... Qg4+ {[%clk 0:00:03.8]} 46. Kf1 {[%clk 0:00:01.3]} 46... Rd1+
{[%clk 0:00:04.5]} 47. Re1 {[%clk 0:00:01.9]} 47... Qh3+ {[%clk 0:00:04.2]} 48.
Ke2 {[%clk 0:00:02.2]} 48... Rxe1+ {[%clk 0:00:04.4]} 49. Kxe1 {[%clk
0:00:03.1]} 49... Qh1+ {[%clk 0:00:04.9]} 50. Qxh1 {[%clk 0:00:02.2]} 50... f4
{[%clk 0:00:05]} 51. Qc6 {[%clk 0:00:02.9]} 51... Kf5 {[%clk 0:00:05.1]} 52. Ke2
{[%clk 0:00:03.8]} 52... Kg4 {[%clk 0:00:05.5]} 53. Qxf6 {[%clk 0:00:03.5]}
53... f3+ {[%clk 0:00:05.2]} 54. Qxf3+ {[%clk 0:00:03.8]} 1-0

[Event "Early-Titled-Tuesday-Blitz-March-12-2024"]
[Site "Chess.com"]
[Date "2024.03.12"]
[Round "2"]
[White "martinmena"]
[Black "Actuary44"]
[Result "1/2-1/2"]
[WhiteElo "2278"]
[BlackElo "2526"]
[TimeControl "180+1"]
[EndTime "8:18:27 PDT"]
[Termination "Game drawn - insufficient material"]

1. c4 {[%clk 0:02:54.5]} 1... d6 {[%clk 0:02:58.7]} 2. g3 {[%clk 0:02:54.1]}
2... g6 {[%clk 0:02:59.2]} 3. Bg2 {[%clk 0:02:54.5]} 3... Bg7 {[%clk 0:02:59.8]}
4. Nc3 {[%clk 0:02:54.9]} 4... e5 {[%clk 0:03:00.2]} 5. e4 {[%clk 0:02:54.7]}
5... Ne7 {[%clk 0:03:00.3]} 6. d3 {[%clk 0:02:55.1]} 6... O-O {[%clk 0:03:00.5]}
7. Bg5 {[%clk 0:02:54.8]} 7... f6 {[%clk 0:03:00.7]} 8. Be3 {[%clk 0:02:54.7]}
8... f5 {[%clk 0:03:01]} 9. Qd2 {[%clk 0:02:53.2]} 9... Nbc6 {[%clk 0:02:59.8]}
10. Nge2 {[%clk 0:02:51.5]} 10... fxe4 {[%clk 0:02:58.6]} 11. dxe4 {[%clk
0:02:50]} 11... Bg4 {[%clk 0:02:57.6]} 12. O-O {[%clk 0:02:46.3]} 12... Qd7
{[%clk 0:02:56.8]} 13. Bh6 {[%clk 0:02:43]} 13... Bh3 {[%clk 0:02:52.4]} 14.
Bxg7 {[%clk 0:02:38.8]} 14... Kxg7 {[%clk 0:02:53.3]} 15. Nd5 {[%clk 0:02:36.5]}
15... Rf7 {[%clk 0:02:33.6]} 16. Bxh3 {[%clk 0:02:24.9]} 16... Qxh3 {[%clk
0:02:32.5]} 17. Nxc7 {[%clk 0:02:25.5]} 17... Rd8 {[%clk 0:02:21.5]} 18. Nd5
{[%clk 0:02:24.1]} 18... Ng8 {[%clk 0:02:20.2]} 19. f4 {[%clk 0:02:19.4]} 19...
Rdf8 {[%clk 0:02:15.9]} 20. Rf2 {[%clk 0:02:17.7]} 20... Nh6 {[%clk 0:02:15.1]}
21. Raf1 {[%clk 0:02:07.2]} 21... Ng4 {[%clk 0:02:14.4]} 22. Rg2 {[%clk
0:02:07.5]} 22... h5 {[%clk 0:01:40.8]} 23. Ne3 {[%clk 0:02:04]} 23... exf4
{[%clk 0:01:13.9]} 24. Nxf4 {[%clk 0:01:51.2]} 24... Rxf4 {[%clk 0:01:12.7]} 25.
Rxf4 {[%clk 0:00:31]} 25... Rxf4 {[%clk 0:01:11.5]} 26. Nf5+ {[%clk 0:00:31]}
26... Rxf5 {[%clk 0:01:03.7]} 27. exf5 {[%clk 0:00:30.5]} 27... Nce5 {[%clk
0:01:00]} 28. Qxd6 {[%clk 0:00:16.9]} 28... gxf5 {[%clk 0:00:54]} 29. Qe7+
{[%clk 0:00:16.2]} 29... Nf7 {[%clk 0:00:53.6]} 30. Qxb7 {[%clk 0:00:13.6]}
30... h4 {[%clk 0:00:42.6]} 31. gxh4 {[%clk 0:00:09.6]} 31... Qe3+ {[%clk
0:00:34.4]} 32. Kh1 {[%clk 0:00:09.8]} 32... Kh6 {[%clk 0:00:27.2]} 33. Qxf7
{[%clk 0:00:05.1]} 33... Qe1+ {[%clk 0:00:20.8]} 34. Rg1 {[%clk 0:00:05.4]}
34... Qe4+ {[%clk 0:00:20.9]} 35. Rg2 {[%clk 0:00:04.7]} 35... Nf2+ {[%clk
0:00:18.5]} 36. Kg1 {[%clk 0:00:03.3]} 36... Nh3+ {[%clk 0:00:19.2]} 37. Kf1
{[%clk 0:00:02.5]} 37... Qf3+ {[%clk 0:00:15.2]} 38. Ke1 {[%clk 0:00:02.9]}
38... Qxg2 {[%clk 0:00:14.4]} 39. Qf6+ {[%clk 0:00:02.7]} 39... Qg6 {[%clk
0:00:11.6]} 40. Qxg6+ {[%clk 0:00:02.7]} 40... Kxg6 {[%clk 0:00:12.5]} 41. c5
{[%clk 0:00:03]} 41... Kf6 {[%clk 0:00:09.3]} 42. c6 {[%clk 0:00:03.1]} 42...
Ke6 {[%clk 0:00:08.9]} 43. b4 {[%clk 0:00:03.6]} 43... Kd6 {[%clk 0:00:07.7]}
44. b5 {[%clk 0:00:04.2]} 44... Nf4 {[%clk 0:00:06.5]} 45. a4 {[%clk 0:00:04.2]}
45... Ng2+ {[%clk 0:00:06]} 46. Kf2 {[%clk 0:00:04.1]} 46... Nxh4 {[%clk
0:00:06.9]} 47. Kg3 {[%clk 0:00:04.7]} 47... Ng6 {[%clk 0:00:07.3]} 48. h4
{[%clk 0:00:04.5]} 48... f4+ {[%clk 0:00:06.3]} 49. Kg4 {[%clk 0:00:04.6]} 49...
f3 {[%clk 0:00:06.6]} 50. Kxf3 {[%clk 0:00:04.2]} 50... Nxh4+ {[%clk 0:00:07.3]}
51. Ke4 {[%clk 0:00:04.9]} 51... Ng6 {[%clk 0:00:07.1]} 52. a5 {[%clk
0:00:04.3]} 52... Kc7 {[%clk 0:00:06.9]} 53. b6+ {[%clk 0:00:03.9]} 53... axb6
{[%clk 0:00:07.8]} 54. axb6+ {[%clk 0:00:03.9]} 54... Kxc6 {[%clk 0:00:07.3]}
55. b7 {[%clk 0:00:03.3]} 55... Kxb7 {[%clk 0:00:07.6]} 1/2-1/2

[Event "Early-Titled-Tuesday-Blitz-March-12-2024"]
[Site "Chess.com"]
[Date "2024.03.12"]
[Round "2"]
[White "HajiyevKanan"]
[Black "ActorXu"]
[Result "0-1"]
[WhiteElo "2583"]
[BlackElo "2867"]
[TimeControl "180+1"]
[EndTime "8:18:31 PDT"]
[Termination "ActorXu won by resignation"]

1. d4 {[%clk 0:03:00.9]} 1... Nf6 {[%clk 0:02:57.9]} 2. Nf3 {[%clk 0:02:59.5]}
2... d5 {[%clk 0:02:56.2]} 3. c4 {[%clk 0:02:59.1]} 3... e6 {[%clk 0:02:56.1]}
4. cxd5 {[%clk 0:02:59.7]} 4... exd5 {[%clk 0:02:56]} 5. Nc3 {[%clk 0:03:00.6]}
5... c6 {[%clk 0:02:47.8]} 6. Qc2 {[%clk 0:03:00.1]} 6... Bd6 {[%clk 0:02:43.3]}
7. Bg5 {[%clk 0:02:59.5]} 7... Nbd7 {[%clk 0:02:41.4]} 8. e3 {[%clk 0:02:59.5]}
8... h6 {[%clk 0:02:36.6]} 9. Bh4 {[%clk 0:02:59.2]} 9... O-O {[%clk 0:02:34.5]}
10. Bd3 {[%clk 0:02:59.4]} 10... Re8 {[%clk 0:02:33]} 11. O-O {[%clk 0:02:59.4]}
11... Be7 {[%clk 0:02:19.3]} 12. Rab1 {[%clk 0:02:58.8]} 12... Ne4 {[%clk
0:02:13.9]} 13. Bxe7 {[%clk 0:02:54.4]} 13... Qxe7 {[%clk 0:02:13.8]} 14. b4
{[%clk 0:02:54.3]} 14... a6 {[%clk 0:02:04.1]} 15. a4 {[%clk 0:02:54.2]} 15...
Ndf6 {[%clk 0:02:02.2]} 16. Ne5 {[%clk 0:02:53.9]} 16... Bf5 {[%clk 0:01:59.2]}
17. Nxe4 {[%clk 0:02:43]} 17... Bxe4 {[%clk 0:01:56.7]} 18. Bxe4 {[%clk
0:02:36.1]} 18... Nxe4 {[%clk 0:01:54.8]} 19. Rfc1 {[%clk 0:02:33.8]} 19... Nd6
{[%clk 0:01:52.3]} 20. Qc5 {[%clk 0:02:22.3]} 20... h5 {[%clk 0:01:42.3]} 21. b5
{[%clk 0:02:18.5]} 21... axb5 {[%clk 0:01:36]} 22. axb5 {[%clk 0:02:18.5]} 22...
Nxb5 {[%clk 0:01:35]} 23. Qxe7 {[%clk 0:01:44.2]} 23... Rxe7 {[%clk 0:01:34]}
24. h4 {[%clk 0:01:45.1]} 24... Ree8 {[%clk 0:01:23.3]} 25. Rb3 {[%clk
0:01:42.6]} 25... Ra2 {[%clk 0:01:21.6]} 26. Rcb1 {[%clk 0:01:42.3]} 26... Rea8
{[%clk 0:01:16.1]} 27. R3b2 {[%clk 0:01:34.8]} 27... Rxb2 {[%clk 0:01:03.9]} 28.
Rxb2 {[%clk 0:01:35.7]} 28... f6 {[%clk 0:01:03.7]} 29. Nd3 {[%clk 0:01:35.4]}
29... Kf7 {[%clk 0:01:02.5]} 30. Nc5 {[%clk 0:01:34.2]} 30... Ra7 {[%clk
0:01:01.8]} 31. Kh2 {[%clk 0:01:31.1]} 31... Ke7 {[%clk 0:00:46]} 32. Kg3 {[%clk
0:01:31.4]} 32... g6 {[%clk 0:00:46]} 33. Kf4 {[%clk 0:01:26.9]} 33... Kd6
{[%clk 0:00:35.2]} 34. f3 {[%clk 0:01:25.5]} 34... b6 {[%clk 0:00:28.2]} 35. Nd3
{[%clk 0:01:24.3]} 35... Nc3 {[%clk 0:00:21.1]} 36. e4 {[%clk 0:01:15.2]} 36...
dxe4 {[%clk 0:00:14.5]} 37. fxe4 {[%clk 0:01:16.1]} 37... b5 {[%clk 0:00:14.5]}
38. Rc2 {[%clk 0:01:09.2]} 38... Ra3 {[%clk 0:00:11.8]} 39. e5+ {[%clk
0:01:09.4]} 39... fxe5+ {[%clk 0:00:11.6]} 40. Nxe5 {[%clk 0:01:10.3]} 40... Kd5
{[%clk 0:00:09.2]} 41. Nxg6 {[%clk 0:01:08.5]} 41... b4 {[%clk 0:00:09.2]} 42.
g4 {[%clk 0:01:05.1]} 42... hxg4 {[%clk 0:00:05.9]} 43. h5 {[%clk 0:01:06]}
43... b3 {[%clk 0:00:05]} 44. Rb2 {[%clk 0:00:44]} 44... Nd1 {[%clk 0:00:03]}
45. Rb1 {[%clk 0:00:44.1]} 45... Nc3 {[%clk 0:00:03.2]} 46. Rb2 {[%clk
0:00:44.1]} 46... Na4 {[%clk 0:00:03.5]} 47. Rb1 {[%clk 0:00:44.1]} 47... b2
{[%clk 0:00:04]} 48. h6 {[%clk 0:00:43.2]} 48... Ra1 {[%clk 0:00:04.3]} 49. h7
{[%clk 0:00:41.3]} 49... Rxb1 {[%clk 0:00:04.6]} 50. h8=Q {[%clk 0:00:41.8]}
50... Rf1+ {[%clk 0:00:05.2]} 51. Ke3 {[%clk 0:00:36.1]} 51... Re1+ {[%clk
0:00:05]} 52. Kd2 {[%clk 0:00:34.2]} 52... b1=Q {[%clk 0:00:04.2]} 53. Nf4+
{[%clk 0:00:29.8]} 53... Kc4 {[%clk 0:00:03.8]} 54. Qg8+ {[%clk 0:00:28.5]}
54... Kxd4 {[%clk 0:00:04.3]} 55. Ne6+ {[%clk 0:00:18.7]} 55... Rxe6 {[%clk
0:00:03.3]} 56. Qxe6 {[%clk 0:00:19.6]} 56... Qd3+ {[%clk 0:00:03.7]} 57. Ke1
{[%clk 0:00:19.8]} 57... Qe3+ {[%clk 0:00:04.1]} 0-1

[Event "Early-Titled-Tuesday-Blitz-March-12-2024"]
[Site "Chess.com"]
[Date "2024.03.12"]
[Round "2"]
[White "AsaHoffmann"]
[Black "ExtremeLearner"]
[Result "1-0"]
[WhiteElo "2351"]
[BlackElo "2551"]
[TimeControl "180+1"]
[EndTime "8:18:32 PDT"]
[Termination "AsaHoffmann won by checkmate"]

1. d4 {[%clk 0:02:53.6]} 1... Nf6 {[%clk 0:03:00]} 2. Bg5 {[%clk 0:02:53]} 2...
d5 {[%clk 0:02:50.6]} 3. Nd2 {[%clk 0:02:52.2]} 3... c6 {[%clk 0:02:48.2]} 4. e3
{[%clk 0:02:51.6]} 4... h6 {[%clk 0:02:41.7]} 5. Bh4 {[%clk 0:02:51.4]} 5... g6
{[%clk 0:02:33.7]} 6. Bd3 {[%clk 0:02:50.2]} 6... Bg7 {[%clk 0:02:33.9]} 7. f4
{[%clk 0:02:50.2]} 7... c5 {[%clk 0:02:29.3]} 8. c3 {[%clk 0:02:49.8]} 8... Nc6
{[%clk 0:02:27.5]} 9. Ngf3 {[%clk 0:02:49.4]} 9... Qb6 {[%clk 0:02:25.5]} 10.
Rb1 {[%clk 0:02:49]} 10... Bf5 {[%clk 0:02:13.7]} 11. Bxf5 {[%clk 0:02:46.2]}
11... gxf5 {[%clk 0:02:14.6]} 12. O-O {[%clk 0:02:45.4]} 12... e6 {[%clk
0:02:07.1]} 13. Ne5 {[%clk 0:02:42.6]} 13... Nxe5 {[%clk 0:02:00.3]} 14. fxe5
{[%clk 0:02:41.8]} 14... Ne4 {[%clk 0:02:00.5]} 15. Nxe4 {[%clk 0:02:35.8]}
15... dxe4 {[%clk 0:02:01.4]} 16. Qh5 {[%clk 0:02:34.5]} 16... cxd4 {[%clk
0:01:53.4]} 17. exd4 {[%clk 0:02:33.6]} 17... Bxe5 {[%clk 0:01:50.9]} 18. Kh1
{[%clk 0:02:15.1]} 18... Bg7 {[%clk 0:01:37.5]} 19. g4 {[%clk 0:02:14.3]} 19...
Qc6 {[%clk 0:01:10.2]} 20. gxf5 {[%clk 0:02:12.7]} 20... e3+ {[%clk 0:01:04.8]}
21. Kg1 {[%clk 0:02:04.7]} 21... Rg8 {[%clk 0:00:56.5]} 22. Bg3 {[%clk
0:02:02.4]} 22... Bf6 {[%clk 0:00:45.9]} 23. fxe6 {[%clk 0:01:53.2]} 23... Qxe6
{[%clk 0:00:46.7]} 24. Qb5+ {[%clk 0:01:52.4]} 24... Kf8 {[%clk 0:00:41.8]} 25.
Rbe1 {[%clk 0:01:42.7]} 25... Bh4 {[%clk 0:00:35.8]} 26. Rf3 {[%clk 0:01:35.2]}
26... Qe4 {[%clk 0:00:21.3]} 27. Qc5+ {[%clk 0:01:26.7]} 27... Be7 {[%clk
0:00:19.9]} 28. Qf5 {[%clk 0:01:22.8]} 28... Qxf5 {[%clk 0:00:15.1]} 29. Rxf5
{[%clk 0:01:22.3]} 29... Bg5 {[%clk 0:00:16]} 30. Kg2 {[%clk 0:01:10.6]} 30...
Re8 {[%clk 0:00:15.2]} 31. Kf3 {[%clk 0:01:10.3]} 31... Kg7 {[%clk 0:00:13.5]}
32. h4 {[%clk 0:01:10.1]} 32... Kg6 {[%clk 0:00:12.9]} 33. Rb5 {[%clk
0:01:03.3]} 33... Bd8 {[%clk 0:00:06.6]} 34. Rxb7 {[%clk 0:00:57.1]} 34... Kh5
{[%clk 0:00:06.6]} 35. Rb5+ {[%clk 0:00:56.2]} 35... Kg6 {[%clk 0:00:06.1]} 36.
Rxe3 {[%clk 0:00:54.6]} 36... Rxe3+ {[%clk 0:00:07]} 37. Kxe3 {[%clk 0:00:54.7]}
37... f5 {[%clk 0:00:07.8]} 38. Rd5 {[%clk 0:00:51.4]} 38... Re8+ {[%clk
0:00:06.5]} 39. Kf3 {[%clk 0:00:51.1]} 39... Be7 {[%clk 0:00:05.7]} 40. Re5
{[%clk 0:00:50.1]} 40... Kf6 {[%clk 0:00:05.1]} 41. Bf4 {[%clk 0:00:48.4]} 41...
Rg8 {[%clk 0:00:04.1]} 42. Bxh6 {[%clk 0:00:46.2]} 42... Bd6 {[%clk 0:00:04.2]}
43. Bg5+ {[%clk 0:00:45.7]} 43... Kf7 {[%clk 0:00:04.2]} 44. Rxf5+ {[%clk
0:00:45.4]} 44... Ke6 {[%clk 0:00:04.3]} 45. Rf6+ {[%clk 0:00:40.6]} 45... Kd7
{[%clk 0:00:04.6]} 46. c4 {[%clk 0:00:39.6]} 46... Rb8 {[%clk 0:00:03.5]} 47. b3
{[%clk 0:00:39.2]} 47... a5 {[%clk 0:00:02.8]} 48. c5 {[%clk 0:00:39]} 48... Bc7
{[%clk 0:00:02.5]} 49. d5 {[%clk 0:00:38]} 49... a4 {[%clk 0:00:02.7]} 50. Rf7+
{[%clk 0:00:37.9]} 50... Kc8 {[%clk 0:00:02.9]} 51. Rxc7+ {[%clk 0:00:37.9]}
51... Kxc7 {[%clk 0:00:02.9]} 52. Bf4+ {[%clk 0:00:38]} 52... Kb7 {[%clk
0:00:03.7]} 53. Bxb8 {[%clk 0:00:37.5]} 53... a3 {[%clk 0:00:04.1]} 54. Bf4
{[%clk 0:00:35.1]} 54... Ka6 {[%clk 0:00:04.6]} 55. Ke3 {[%clk 0:00:33.9]} 55...
Kb5 {[%clk 0:00:05.3]} 56. Kd4 {[%clk 0:00:34.1]} 56... Kb4 {[%clk 0:00:05.9]}
57. Bd2+ {[%clk 0:00:34]} 57... Kb5 {[%clk 0:00:06.4]} 58. d6 {[%clk 0:00:33.5]}
58... Kc6 {[%clk 0:00:06.5]} 59. Kc4 {[%clk 0:00:33.7]} 59... Kb7 {[%clk
0:00:06.3]} 60. Kd5 {[%clk 0:00:33.6]} 60... Ka6 {[%clk 0:00:07.2]} 61. c6
{[%clk 0:00:33.5]} 61... Kb5 {[%clk 0:00:07.7]} 62. d7 {[%clk 0:00:32.8]} 62...
Ka6 {[%clk 0:00:07.8]} 63. d8=Q {[%clk 0:00:31.9]} 63... Ka7 {[%clk 0:00:07.8]}
64. Be3+ {[%clk 0:00:31.3]} 64... Ka6 {[%clk 0:00:07]} 65. Qb6# {[%clk
0:00:30.8]} 1-0